Cogmind - Beta 15 @@@ ROGUE MODE // 2025.06.19 @ 12:13:01 Player: Pancakes Result: Destroyed by G-34 Mercenary with Small Laser Performance ------------- Evolutions (1) 500 Regions Visited (3) 600 Robots Destroyed (73) 365 Value Destroyed (1953) 1953 Prototype IDs (2) 40 Alien Tech Used (0) 0 Bonus (0) 0 TOTAL SCORE: 3458 Bonus ------- None Cogmind --------- Core Integrity 0/400 Matter 229/300 Energy 125/125 System Corruption 5% Temperature Cool (6) Movement Treading (330) Ox2 Location -9/Storage Parts ------- > --- POWER (1) -------- Light Ion Engine > --- PROPULSION (2) --- Armored Treads Armored Treads > --- UTILITY (4) ------ Huge Storage Unit Improved Terrain Scanner Light Armor Plating > --- WEAPON (2) ------- Heavy Assault Rifle > --- INVENTORY (25) --- Ion Engine Flight Unit Flight Unit Flight Unit VTOL Module VTOL Module VTOL Module VTOL Module Large Storage Unit Large Battery (200) Weight Redist. System Weight Redist. System Structural Scanner Visual Processing Unit Signal Interpreter Terrain Scanner Seismic Detector Advanced Targeting Computer Advanced Targeting Computer Recoil Stabilizer ECM Suite Hacking Suite Datajack Mining Laser Peak State ------------ > --- POWER ------------ Improved Ion Engine > --- PROPULSION ------- Armored Treads Wheel > --- UTILITY ---------- Huge Storage Unit Signal Interpreter Improved Terrain Scanner ECM Suite > --- WEAPON ----------- Heavy Assault Rifle Shotgun > --- INVENTORY -------- Light Ion Engine Light Treads Armored Treads Flight Unit Flight Unit Flight Unit VTOL Module VTOL Module VTOL Module VTOL Module Large Storage Unit Large Battery Weight Redist. System Weight Redist. System Structural Scanner Visual Processing Unit Signal Interpreter Terrain Scanner Seismic Detector Advanced Targeting Computer Recoil Stabilizer Heavy Assault Rifle Heavy Assault Rifle Datajack Mining Laser [Rating: 20] Favorites ----------- Power Light Ion Engine Engine Light Ion Engine Propulsion Armored Treads Treads Armored Treads Wheel Wheel Utility Signal Interpreter Device Improved Terrain Scanner Storage Huge Storage Unit Processor Signal Interpreter Protection Light Armor Plating Weapon Heavy Assault Rifle Energy Gun Medium Laser Ballistic Gun Heavy Assault Rifle Special Weapon Mining Laser Special Melee Weapon Datajack Build | -11 -10 -9 -9 ------- Run | Yrd Mat Mat Sto Slots Evolved 2 | . . 2 . Power . | . . . . Propulsion . | . . . . Utility 2 | . . 2 . Weapon . | . . . . Parts Attached 47 | 7 16 20 4 Power 7 | 1 2 4 . Engine 7 | 1 2 4 . Core . | . . . . Reactor . | . . . . Propulsion 12 | 2 3 5 2 Treads 5 | 1 1 2 1 Leg . | . . . . Wheel 7 | 1 2 3 1 Hover . | . . . . Flight . | . . . . Utility 10 | 2 4 3 1 Device 5 | 1 1 3 . Storage 3 | 1 2 . . Processor 1 | . 1 . . Hackware . | . . . . Protection 1 | . . . 1 Artifact . | . . . . Weapon 18 | 2 7 8 1 Energy Gun 4 | 1 3 . . Energy Cannon . | . . . . Ballistic Gun 11 | 1 3 7 . Ballistic Cannon . | . . . . Launcher . | . . . . Special Weapon 2 | . 1 . 1 Impact Weapon . | . . . . Slashing Weapon . | . . . . Piercing Weapon . | . . . . Special Melee Weapon 1 | . . 1 . Unidentified Prototypes . | . . . . Parts Lost 20 | . 4 10 6 Power 2 | . . 2 . Propulsion 7 | . 2 3 2 Utility 2 | . . 1 1 Weapon 9 | . 2 4 3 Highest Loss Streak 4 | . 3 4 2 To Critical Strikes . | . . . . Average Backups 20 | 2 8 23 23 Power . | . 1 . . Propulsion 6 | . 2 8 7 Utility 10 | . 4 10 13 Weapon 1 | . . 2 1 Tool/Special . | . . . . Unused Backups 28 | . 2 7 19 Power 2 | . 1 . 1 Propulsion 11 | . . 4 7 Utility 14 | . 1 2 11 Weapon 1 | . . 1 . Tool/Special . | . . . . Average Slot Usage (%) 99 | . 99 98 99 Engine 11 | . 14 10 11 Treads 13 | . 17 7 17 Wheel 9 | . 10 13 4 Device 14 | . 1 21 12 Storage 11 | . 14 11 11 Processor 11 | . 12 11 10 Protection 3 | . . . 9 Energy Gun 1 | . 7 . . Ballistic Gun 21 | . 19 21 21 Peak Build Rating 20 | 9 9 20 20 Average Rating 16 | 6 7 17 19 On Entrance 9 | . 9 8 19 Naked Turns . | . . . . Heaviest Build 96 | 14 86 96 93 Greatest Support 40 | 20 40 26 40 Greatest Overweight (x) 9 | 1 8 9 9 Average Overweight (x) 4 | . 2 6 5 Largest Inventory Capacity 25 | 8 25 25 25 Average Capacity 22 | 7 13 25 25 Most Carried 25 | 4 14 25 24 Average Carried 20 | 2 8 23 23 Final Capacity 25 | 8 25 25 25 Final Carried 24 | 4 14 24 24 Class Distribution -------------------- 73% | Scavenger-Mutant 20% | Mutant 3% | Scavenger-Skirmisher Dominant Class ---------------- Mutant | -10/Materials Scavenger-Mutant | -9/Materials Scavenger-Mutant | -9/Storage Resources | -11 -10 -9 -9 ----------- Run | Yrd Mat Mat Sto Matter Collected 2044 | 252 389 965 438 Remotely . | . . . . Salvage Created 2526 | 24 617 1447 438 Parts 161 | 3 42 94 22 Haulers Intercepted . | . . . . Recyclers Shooed 2 | . . . 2 Parts Field Recycled . | . . . . Retrieved Matter . | . . . . Parts Self-Destructed . | . . . . Prevented . | . . . . Kills | -11 -10 -9 -9 ------- Run | Yrd Mat Mat Sto Combat Hostiles Destroyed 51 | . 14 29 8 Guns 51 | . 14 29 8 Classes Destroyed 9 | 1 5 3 . Worker 5 | . 1 3 1 Tunneler 2 | 1 1 . . Recycler 1 | . . 1 . Operator 5 | . 1 3 1 Watcher 9 | . 3 5 1 Swarmer 10 | . 3 7 . Grunt 28 | . 11 12 5 Brawler 2 | . . 1 1 Sentry 11 | . . 9 2 Best Kill Streak 5 | 1 4 5 2 Combat Bots Only 4 | . 4 3 2 Max Kills in Single Turn 2 | 1 2 1 1 Gunslinging 1 | . 1 . . Exploded . | . . . . Melee . | . . . . Uniques/NPCs Destroyed . | . . . . Combat | -11 -10 -9 -9 -------- Run | Yrd Mat Mat Sto Hostile Shots Fired 323 | . 75 162 86 Missed 74 | . 22 40 12 Hits 249 | . 53 122 74 Melee 3 | . . . 3 Projectile 246 | . 53 122 71 Critical Strikes 9 | . 2 4 3 Damage Taken 3102 | . 676 1467 959 Core 500 | . 91 269 140 Absorbed by Shields . | . . . . Regen/Repaired (Parts) 205 | . 93 33 79 Core Remaining (%) 81 | 100 63 . . Volleys Fired 277 | 2 78 123 74 Largest 2 | 1 2 2 2 Hottest 100 | 40 100 100 100 Shots Fired 513 | 2 141 240 130 Gun 507 | 2 139 239 127 Cannon . | . . . . Launcher . | . . . . Special 6 | . 2 1 3 Kinetic 443 | . 77 239 127 Thermal 70 | 2 64 1 3 Explosive . | . . . . Electromagnetic . | . . . . Robot Hit Streak 22 | 2 22 18 15 Robot Miss Streak 7 | . 5 7 5 Penetration Max . | . . . . Secondary Targets 4 | . 1 3 . Max Gunslinging Chain 1 | . 1 1 . Shots Hit Robots 333 | 2 87 150 94 Core Hits 124 | 1 36 69 18 Critical Kills 3 | . 1 2 . Critical Parts Destroyed 2 | . 1 1 . Critical Strikes 5 | . 2 3 . Destroy 5 | . 2 3 . Melee Attacks 4 | . . 1 3 Impact . | . . . . Slashing . | . . . . Piercing . | . . . . Sneak Attacks 1 | . . 1 . Combat Hostiles . | . . . . Follow-up Attacks . | . . . . Damage Inflicted 4510 | 21 993 2105 1391 Guns 4507 | 21 990 2105 1391 Cannons . | . . . . Explosions . | . . . . Melee . | . . . . Ramming 3 | . 3 . . Kinetic 3954 | . 458 2105 1391 Thermal 553 | 21 532 . . Explosive . | . . . . Electromagnetic . | . . . . Impact . | . . . . Slashing . | . . . . Piercing . | . . . . Highest Corruption 5 | . . . 5 Average Corruption 5 | . . . 5 Corruption Purged . | . . . . Corruption Blocked . | . . . . Effects 6 | . . . 6 Message Errors 1 | . . . 1 Matter Fused 1 | . . . 1 Energy Discharges 1 | . . . 1 Misfires 1 | . . . 1 Alerts 1 | . . . 1 Weapon Failures 1 | . . . 1 Overload Shots . | . . . . Overflow Damage . | . . . . Projectiles . | . . . . Explosions . | . . . . Melee . | . . . . Knockbacks . | . . . . Impact . | . . . . Kinetic . | . . . . Secondary . | . . . . Self-Inflicted Damage . | . . . . Shots . | . . . . Rammed . | . . . . Targets Rammed 1 | . 1 . . Kicked . | . . . . Crushed 1 | . 1 . . Highest Temperature 150 | . 150 31 40 Average Temperature 34 | . 46 8 7 Received Heat Transfer 1407 | . 402 585 420 Siege Activations . | . . . . Martial Activations . | . . . . Shielding Activations . | . . . . Robots Disrupted . | . . . . Combat Hostiles . | . . . . Robots Corrupted . | . . . . Combat Hostiles . | . . . . Parts Fried . | . . . . Impact Corruptions . | . . . . Robots Melted . | . . . . Combat Hostiles . | . . . . Parts Melted 1 | . 1 . . Heat Transferred 1522 | 50 1472 . . Parts Sabotaged . | . . . . Parts Stolen . | . . . . Parts Stripped . | . . . . Power Chain Reactions . | . . . . Alert | -11 -10 -9 -9 ------- Run | Yrd Mat Mat Sto Maximum Alert Level 1 | . . 1 . Low Security (%) 78 | 100 100 52 100 Level 1 21 | . . 47 . Level 2 . | . . . . Level 3 . | . . . . Level 4 . | . . . . Level 5 . | . . . . High Security . | . . . . Max Security . | . . . . Peak Influence 360 | 5 125 360 152 Initial 152 | . . 14 152 Average 108 | . 47 189 42 Influence Increases 1631 | 5 482 878 266 Destroy 0b10 Robot/C 1020 | . 280 580 160 Destroy 0b10 Robot/NC 110 | 5 30 60 15 Destroy Leader 298 | . 76 180 42 Successful Hack 28 | . 5 10 13 Disable Machine 30 | . 15 15 . Destroy Structure 10 | . 1 3 6 Partial Spotted 15 | . . . 15 Lose Combat Pursuer 120 | . 75 30 15 Influence Decreases 1512 | 5 446 554 507 Entered New Map 230 | . . 22 208 Time Decay 1122 | 5 426 442 249 Lost Part 160 | . 20 90 50 Squads Dispatched 9 | . 3 4 2 Investigation 4 | . 2 2 . Extermination . | . . . . Reinforcement 5 | . 1 2 2 Assault . | . . . . Garrison . | . . . . Intercept . | . . . . Searches Triggered . | . . . . Construction Impeded . | . . . . Haulers Reinforced . | . . . . Active Scanning Responses . | . . . . Cargo Convoy Interrupts . | . . . . Stealth | -11 -10 -9 -9 --------- Run | Yrd Mat Mat Sto Distress Signals 9 | . 3 5 1 Communications Jammed . | . . . . Distress Signals . | . . . . Times Spotted 139 | . 49 67 23 Peak Tracking Total 6 | . 5 6 3 Tactical Retreats 21 | . 9 6 6 Traps | -11 -10 -9 -9 ------- Run | Yrd Mat Mat Sto Traps Triggered 4 | . 3 1 . Indirectly . | . . . . Trap Hack Attempts . | . . . . Triggered . | . . . . Disarmed . | . . . . Reprogrammed . | . . . . Reused . | . . . . Traps Extracted . | . . . . Installed . | . . . . Triggered . | . . . . Machines | -11 -10 -9 -9 ---------- Run | Yrd Mat Mat Sto Machines Disabled 2 | . 1 1 . Max in Single Turn 1 | . 1 1 . Machines Repaired . | . . . . Machines Dismantled . | . . . . Machines Sabotaged . | . . . . Overloaded Fab Kills . | . . . . Hacking | -11 -10 -9 -9 --------- Run | Yrd Mat Mat Sto Machines Accessed 21 | . 7 8 6 Terminals 13 | . 4 4 5 Fabricators . | . . . . Repair Stations 4 | . 1 2 1 Recycling Units 2 | . 2 . . Scanalyzers 2 | . . 2 . Garrison Access . | . . . . Total Hacks 33 | . 9 13 11 Successful 24 | . 8 9 7 Failed 9 | . 1 4 4 Catastrophic 1 | . . . 1 Database Lockouts . | . . . . Manual 5 | . 2 2 1 Terminals 18 | . 4 5 9 Fabricators . | . . . . Repair Stations 8 | . 2 4 2 Recycling Units 3 | . 3 . . Scanalyzers 4 | . . 4 . Garrison Access . | . . . . Terminal Hacks 11 | . 3 3 5 Prototype ID Bank 1 | . . 1 . Open Door 1 | . . . 1 Alert Level 2 | . . 1 1 Locate Traps 5 | . 1 1 3 Zone Layout 2 | . 2 . . Fabricator Hacks . | . . . . Repair Station Hacks 8 | . 2 4 2 Scan Component 4 | . 1 2 1 Repair 4 | . 1 2 1 Recycling Unit Hacks 3 | . 3 . . Report Inventory 3 | . 3 . . Scanalyzer 2 | . . 2 . Insert Component 1 | . . 1 . Analyze 1 | . . 1 . Garrison Access Hacks . | . . . . Unauthorized Hacks . | . . . . Terminals . | . . . . Fabricators . | . . . . Repair Stations . | . . . . Recycling Units . | . . . . Scanalyzers . | . . . . Garrison Access . | . . . . Data Cores Recovered . | . . . . Used . | . . . . Hacking Detections 9 | . 3 4 2 Full Trace Events 1 | . . 1 . Feedback Events . | . . . . Feedback Blocked . | . . . . Robot Schematics Acquired . | . . . . Robots Built . | . . . . Authchips . | . . . . Time . | . . . . Total Robot Build Rating . | . . . . Part Schematics Acquired 1 | . . 1 . Parts Built . | . . . . Authchips . | . . . . Time . | . . . . Total Part Build Rating . | . . . . Parts Repaired 4 | . 1 2 1 Time 116 | . 26 64 26 Parts Recycled . | . . . . Recycled Matter . | . . . . Retrieved Matter . | . . . . Retrieved Components . | . . . . Parts Scanalyzed 1 | . . 1 . Part Schematics Acquired 1 | . . 1 . Parts Damaged . | . . . . Bothacking | -11 -10 -9 -9 ------------ Run | Yrd Mat Mat Sto Used RIF Installer . | . . . . Robots Hacked 2 | . . 1 1 Non-combat 2 | . . 1 1 Combat . | . . . . Robot Hacks Applied 2 | . . 1 1 parse_system 1 | . . . 1 no_distress 1 | . . 1 . Relay Couplers Released . | . . . . Fabnet Peak Effective % . | . . . . Robots Rewired . | . . . . Allies Hacked . | . . . . Hacks Repelled . | . . . . Allies | -11 -10 -9 -9 -------- Run | Yrd Mat Mat Sto Total Allies . | . . . . Largest Group . | . . . . Highest-Rated Group . | . . . . Highest-Rated Ally . | . . . . Total Orders . | . . . . Ally Attacks . | . . . . Total Damage . | . . . . Kills . | . . . . Allies Corrupted . | . . . . Allies Melted . | . . . . Intel | -11 -10 -9 -9 ------- Run | Yrd Mat Mat Sto Active Infowar (turns) 20019 | 67 623 10676 8653 Sensors 1504 | . . 1504 . Terrain 19677 | 67 368 10589 8653 Seismic 47 | . . 47 . ECM 10579 | . 255 8913 1411 Robot Analysis Total . | . . . . Derelict Logs Recovered . | . . . . Drone Launches . | . . . . Drone Recoveries . | . . . . Exploration | -11 -10 -9 -9 ------------- Run | Yrd Mat Mat Sto Turns Passed 24112 | 121 4662 10676 8653 Spaces Moved 4279 | 108 2066 1502 603 Core 4 | 4 . . . Treads 935 | 3 627 23 282 Legs . | . . . . Wheels 3340 | 101 1439 1479 321 Hover . | . . . . Flight . | . . . . Fastest Speed 50 | 50 95 135 200 Average Speed 173 | 87 139 188 270 Slowest Speed 490 | 160 200 480 490 Overloaded Moves . | . . . . Propulsion Burnouts . | . . . . Robots Hopped . | . . . . Potential Cave-ins . | . . . . Cave-ins Triggered . | . . . . Exploration Rate (%) 61 | 5 99 89 54 Regions Visited 3 Branch Regions 1 Pre-discovered Areas . | . . . . Known Exits Taken 2 | . 1 1 . Unknown Exits Taken 1 | 1 . . . Scrap Searched . | . . . . Spaces Dug 3 | . . 1 2 Terrain Destroyed 3 | . . 1 2 Melee . | . . . . Projectile 3 | . . 1 2 AOE . | . . . . Terrain Rammed . | . . . . Walls Destroyed . | . . . . Machines Disabled . | . . . . Actions | -11 -10 -9 -9 --------- Run | Yrd Mat Mat Sto Total 20436 | 129 3713 9109 7485 Wait 15708 | 7 1510 7406 6785 Move 4276 | 107 2065 1501 603 Hop . | . . . . Pick Up 65 | 6 22 32 5 Fast Attach 14 | 5 5 4 . Attach 23 | 2 5 11 5 Detach 1 | . 1 . . Swap 40 | . 14 16 10 Drop 27 | . 12 15 . Fire 277 | 2 78 123 74 Melee 4 | . . 1 3 Ram . | . . . . Kick . | . . . . Crush 1 | . 1 . . Escape Stasis . | . . . . Rewire . | . . . . Trap . | . . . . Miscellaneous . | . . . . Route ------- -11/Scrapyard -10/Materials (discovered 5 exits: *Mat x3 / *Min / *Sub) -9/Materials (discovered 7 exits: *Mat x3 / *Min x2 / *Sto x2) -9/Storage (discovered 1 exit: [Rec]) History --------- Turn | Location | Event 35 | -11/Scrapyard | Discovered new exit (range 15) 122 | -11/Scrapyard | Entered Materials 309 | -10/Materials | Build established: Mutant 642 | -10/Materials | Discovered new exit (range 16) 767 | -10/Materials | Identified exit to Mines 1943 | -10/Materials | Lost 3 parts (1n2w) 2294 | -10/Materials | Discovered new exit (range 8) 2336 | -10/Materials | Identified exit to Materials 3096 | -10/Materials | Repaired Lgt. Treads 4249 | -10/Materials | Discovered new exit (range 7) 4273 | -10/Materials | Identified exit to Subcaves 4313 | -10/Materials | Discovered exit to Materials (range 10) 4659 | -10/Materials | Discovered exit to Materials (range 16) 4784 | -10/Materials | Entered another Materials area 4784 | -9/Materials | Evolved 2 slots: Utility x2 5144 | -9/Materials | Build established: Skirmisher 5659 | -9/Materials | Build established: Scavenger-Skirmisher 6588 | -9/Materials | Build established: Scavenger-Mutant 7104 | -9/Materials | Discovered new exit (range 7) 7179 | -9/Materials | Discovered new exit (range 15) 7226 | -9/Materials | Core integrity fell below 50% 7265 | -9/Materials | Lost 4 parts (1n3w) 7331 | -9/Materials | Repaired Imp. Terrain Scanner 8008 | -9/Materials | Repaired ECM Suite 8035 | -9/Materials | Discovered new exit (range 15) 8350 | -9/Materials | Identified exit to Materials 8388 | -9/Materials | Identified exit to Storage 8759 | -9/Materials | Discovered exit to Storage (range 15) 8801 | -9/Materials | Identified exit to Mines 10945 | -9/Materials | Discovered exit to Materials (range 5) 14196 | -9/Materials | Discovered exit to Mines (range 16) 14214 | -9/Materials | Discovered exit to Materials (range 15) 15460 | -9/Materials | Entered Storage 16853 | -9/Storage | Core integrity fell below 20% 19316 | -9/Storage | Repaired Lgt. Armor Plating 19783 | -9/Storage | Discovered new exit (range 11) 24113 | -9/Storage | Destroyed by G-34 Mercenary with Small Laser Last Messages --------------- Acquired 57 matter. System corrupted: Energy discharge (-42). Destroyed Heat Sink. G-34 Mercenary destroyed. Acquired 49 matter. K-01 Serf collects debris. R-06 Scavenger collects Aluminum Leg. K-01 Serf collects debris. R-06 Scavenger collects Sml. Laser. MP=Z=CCVDWRJFUZTWIUOOVF System corrupted: IFF burst signal emitted. System corrupted: FCS attempts to trigger Hvy. Assault Rifle. System corrupted: Hvy. Assault Rifle misfires. U-05 Engineer builds a Door. System corrupted: Matter fused (-7). W-16 Scout sends out distress signal. Hvy. Assault Rifle destroyed. System corrupted: Hvy. Assault Rifle jammed. K-01 Serf cleans the Repair Station. Map ----- +----------------------------------------------------+ | ??????????????????????????????????#??##?## # | | ?????????#??????????????????????###?#?#??# # | | ???????????????????????????????????###???# #? | | ?????????????????????????????????#??###?## ## | | ????????????????????????????????????#?? ?# #? | | ###"???##????????????????????????####???#######+## | | ??? #??????#?????????????????###?# ##?### # | | # ""?? ##??????????????????????#?#?##?#???## # | | # """? ###?????????????????#??? ?#?#? ?#??## # | | # """" # ??????????????????? ? ??#?#? ###?## # | | # """" +??????????? ???????? " ####### #### # | | # #? ? ?????????????? ####### #####+# | | # """" #???????????#????########## + | | # """" #???#??????? ???########### """" ##### | | # """" #????????????"? ?#?#### # """" ##### | | # """" #? #??#??" ?? ####### # """" ##### | | # ## ###? ?? " ###??## # """ T#?## | | #####+#+##^^#### "? " #??#?## # ##### | | ?#??# ^^#### " " ?###### # + ^^^^ | | ???## ##?# ?""" ####### # # | | ???### ## #### ? ####### #####+#### | | ????## ## #### ####### | | #?#?## ## ##T#####/########## | | ###### ## k """ | | #"T"##+## ^ ^ ^"R" ####################### | | # """"" ^ " "@ ####### # # | | """ #^ """""^ gk "###### # # | | """ # """""" T###### # """ """ # | | """ # """" "###### # """ """ # | | + ####### # """ """ # | | """ # ### + # # | | """ # ###+###+## ### ### # # | | """ ## #### ######## ### # # | | [ ## #### ##### ####+#########+### | | ###"Y"#### #### / ##### | | ??#"""#### ##?# ##### | | #?######## #### ##### | | ??####?#?# T#?# ##### #######+#### ##### | | ##???###?# ##?# ################# ### #### | | ??#######""""#?# #############]]] ### #### | | ??????#### ??## ! [##########??#[[[ ### #### | | ???####### < ### #################T#### #### | | ???#?####? ### ###################### + | | ??????########## #######?#?####?############ | | ?????#?######### ######?#?######?########### | | ????????###?####################?###?#####?####?# | | ?????#?#??##?#####?##??##??????#######?#?######### | | ?????????##?####?######???????????#?########?#???# | | ???????#?????#???#????????????????#?##???#?#??###? | | | +----------------------------------------------------+ Best States ------------- Heat Dissipation 28 Energy Generation 12 Energy Capacity 265 Matter Stores 300 Matter Capacity 300 Sight Range 16 Robot Scan Range 14 Terrain Scan Range 16 Terrain Scan Density 10 ECM Strength 1 Armor Coverage 150 Evasion (%) 44 Recoil Reduction 2 Item Schematics ----------------- Hvy. Assault Rifle | -9/Materials | Scanalyzed Robot Schematics ------------------ None Fabricated ------------ Nothing Repaired ---------- Lgt. Treads | 33% | -10/Materials Imp. Terrain Scanner | 4% | -9/Materials ECM Suite | 40% | -9/Materials Lgt. Armor Plating | 12% | -9/Storage Alien Tech Used ----------------- None Achievements -------------- None Challenges ------------ None Game ------ Seed StructuralSiegeShockpuncher Manual? 0 Play Time 01:19:10 Cumulative 16.3 hours Start 2025.06.18 @ 13:35:18 End 2025.06.19 @ 12:13:01 Sessions 3 Manual Loads 0 Difficulty Rogue Special Mode None Game No. 20 Rogue 20 Adventurer 0 Explorer 0 Win Type - Total 0 Types 0/0/0/0/0/0/0/0/0/0 Lore% 18 Gallery% 14 Achievement% 15 Wizard Run 0 Options --------- Layout 1 ASCII 0 Keyboard 0 Movement Mouse Keybinds 0 Fullscreen 1 Font 32/SmallcapsGlow Map View 50x35 Zoom Use 0% Tactical HUD 0 Map Filters NONE Filters NONE Steam 1 RUN: be1041c9-b475-405f-94b5-6fbf043a92e1